Body,Body Name,Date,TransNo,Amount � (Excl VAT),Supplier name,Description,Expense Area,Expense Type,Expense Code,
http://opendatacommunities.org/id/london-borough-council/sutton,London Borough of Sutton,24/11/2022,10009797,108.33, ZETTLE_ FUN KIDS ENTER,HAF PARTY DEPOSIT,Health and Wellbeing,Equipment And Materials Purchase,A40000,
http://opendatacommunities.org/id/london-borough-council/sutton,London Borough of Sutton,22/11/2022,10009797,8.32, TWINKL,TWINKL SUBSCRIPTION,Health and Wellbeing,Equipment And Materials Purchase,A40000,
http://opendatacommunities.org/id/london-borough-council/sutton,London Borough of Sutton,11/11/2022,10009797,13.28, AMZNMKTPLACE AMAZON.CO,TOYS AND EQUIPMENT,Health and Wellbeing,Equipment And Materials Purchase,A40000,
http://opendatacommunities.org/id/london-borough-council/sutton,London Borough of Sutton,08/11/2022,10009797,9.99, STAPLES,STATIONARY,Health and Wellbeing,Equipment And Materials Purchase,A40000,
http://opendatacommunities.org/id/london-borough-council/sutton,London Borough of Sutton,08/11/2022,10009797,27.46, STAPLES,STATIONARY,Health and Wellbeing,Equipment And Materials Purchase,A40000,
http://opendatacommunities.org/id/london-borough-council/sutton,London Borough of Sutton,02/11/2022,10009797,13.29, EBAY O 27-09284-91626,TOYS AND EQUIPMENT,Health and Wellbeing,Equipment And Materials Purchase,A40000,
http://opendatacommunities.org/id/london-borough-council/sutton,London Borough of Sutton,11/11/2022,10009797,5.00, POUNDLAND LTD,CRAFT,Health and Wellbeing,Equipment And Materials Purchase,A40000,
http://opendatacommunities.org/id/london-borough-council/sutton,London Borough of Sutton,11/11/2022,10009797,80.64, SAINSBURYS.CO.UK,GROCERIES,Health and Wellbeing,Provisions,A41006,
http://opendatacommunities.org/id/london-borough-council/sutton,London Borough of Sutton,31/10/2022,10009797,82.88, SAINSBURYS.CO.UK,GROCERIES,Health and Wellbeing,Provisions,A41006,
http://opendatacommunities.org/id/london-borough-council/sutton,London Borough of Sutton,31/10/2022,10009797,53.54, TESCO STORES 5999,GROCERIES,Health and Wellbeing,Provisions,A41006,
http://opendatacommunities.org/id/london-borough-council/sutton,London Borough of Sutton,11/11/2022,10009797,5.21, ASDA STORES,GROCERIES,Health and Wellbeing,Provisions,A41006,
http://opendatacommunities.org/id/london-borough-council/sutton,London Borough of Sutton,28/11/2022,10009797,62.19, TESCO STORES 5999,GROCERIES,Health and Wellbeing,Provisions,A41006,
http://opendatacommunities.org/id/london-borough-council/sutton,London Borough of Sutton,25/11/2022,10009797,73.58, SAINSBURYS.CO.UK,GROCERIES REFUNDED,Health and Wellbeing,Provisions,A41006,
http://opendatacommunities.org/id/london-borough-council/sutton,London Borough of Sutton,25/11/2022,10009797,-73.58, SAINSBURYS.CO.UK,GROCERIES REFUND,Health and Wellbeing,Provisions,A41006,
http://opendatacommunities.org/id/london-borough-council/sutton,London Borough of Sutton,22/11/2022,10009797,16.42, ASDA STORES,GROCERIES,Health and Wellbeing,Provisions,A41006,
http://opendatacommunities.org/id/london-borough-council/sutton,London Borough of Sutton,14/11/2022,10009797,54.06, TESCO STORES 5999,GROCERIES,Health and Wellbeing,Provisions,A41006,
http://opendatacommunities.org/id/london-borough-council/sutton,London Borough of Sutton,31/10/2022,10009797,-0.69, SAINSBURYS.CO.UK,GROCERIES,Health and Wellbeing,Free Milk,A41007,
http://opendatacommunities.org/id/london-borough-council/sutton,London Borough of Sutton,09/11/2022,10009797,8.75, SAINSBURYS S/MKTS,GROCERIES,Health and Wellbeing,Free Milk,A41007,
http://opendatacommunities.org/id/london-borough-council/sutton,London Borough of Sutton,04/11/2022,10009797,143.87, BAKER ROSS,CRAFT MATERIALS FOR LIBRARY CHRISTMAS ACTIVITIES FOR CHILDREN,Health and Wellbeing,Arts Programme,A44286,
http://opendatacommunities.org/id/london-borough-council/sutton,London Borough of Sutton,09/11/2022,10009797,339.54, REALLY USEFUL PROD,MATERIALS FOR DISASTER KIT,Health and Wellbeing,Equipment And Materials Purchase,A40000,
http://opendatacommunities.org/id/london-borough-council/sutton,London Borough of Sutton,29/10/2022,10009797,53.20, AMZNMKTPLACE,SPLIT - EXCEART 10CM RUBBER ROLLER BRAYER SOFT RUBBER APPLICATOR PAINT BRUSH SLAB ROLLER FOR ARTS CRAFTS INK PRINTMAKING BLOCK STAMPING PRINTING APPLYING GLUE (100%),Health and Wellbeing,Equipment And Materials Purchase,A40000,
http://opendatacommunities.org/id/london-borough-council/sutton,London Borough of Sutton,28/10/2022,10009797,54.96, AMZNMKTPLACE,"SPLIT - AMA 10 PACK EXTRA HEAVY DUTY RUBBLE SACKS - EXTRA LARGE 120CM X 90CM (47'' X 34'') - SUPER STRONG - PERFECT FOR MOVING, DIY, BUILDERS, GARDEN, INDUSTR (100%)",Health and Wellbeing,Equipment And Materials Purchase,A40000,
http://opendatacommunities.org/id/london-borough-council/sutton,London Borough of Sutton,28/10/2022,10009797,61.26, AMZNMKTPLACE,SPLIT - LINO BLOCK PRINTING INK PACK OF 6 X 300ML ART PRINT PAINT SET ASSORTED COLOURS (100%),Health and Wellbeing,Equipment And Materials Purchase,A40000,
http://opendatacommunities.org/id/london-borough-council/sutton,London Borough of Sutton,27/10/2022,10009797,18.16, AMZNMKTPLACE,SPLIT - PACK OF 10 INKING TRAYS (SIZE 250MM X 200MM) WITH COLOUR MIXING CHART (100%),Health and Wellbeing,Equipment And Materials Purchase,A40000,
http://opendatacommunities.org/id/london-borough-council/sutton,London Borough of Sutton,27/10/2022,10009797,41.19, AMZNMKTPLACE,"SPLIT - 100% ECO RECYCLED ART A4 CARTRIDGE PAPER WHITE GREAT ART PAPER 140GSM PACK OF 250 SHEETS - SUITABLE FOR BOOKMAKING, SKETCHING, PAINTING, PRINTING AND (100%)",Health and Wellbeing,Equipment And Materials Purchase,A40000,
http://opendatacommunities.org/id/london-borough-council/sutton,London Borough of Sutton,27/10/2022,10009797,66.80, WWW.PRESERVATIONEQUIPM,ABSORBENT STRIPS FOR DISASTER KIT,Health and Wellbeing,Equipment And Materials Purchase,A40000,
http://opendatacommunities.org/id/london-borough-council/sutton,London Borough of Sutton,04/11/2022,10009797,48.00, WWW.THEWORKS.CO.UK,BOOKS FOR GROTTO GIFTS - TO BE MADE BACK IN TICKET SALES,Health and Wellbeing,Books,A43050,
http://opendatacommunities.org/id/london-borough-council/sutton,London Borough of Sutton,08/11/2022,10009797,4.16, AMZNMKTPLACE,"SPLIT - CHRISTMAS STICKERS FOR CHILDREN,CHRISTMAS DECORATIONS 14SHEETS CHRISTMAS STICKERS KIDS STICKERS,3D STICKERS FOR BOYS GIRLS DIY SCARPBOOKING CRAFTS CAR (100%)",Health and Wellbeing,Inquiry Expenses,A44285,
http://opendatacommunities.org/id/london-borough-council/sutton,London Borough of Sutton,08/11/2022,10009797,5.23, AMZNMKTPLACE,SPLIT - MIAHART 60 SHEETS CHRISTMAS TISSUE PAPER BULK 50*35CM RED AND GREEN CHRISTMAS WRAPPING PAPER FOR DIY AND CRAFT GIFT BAGS PACKAGING DECORATIONS (100%),Health and Wellbeing,Arts Programme,A44286,
http://opendatacommunities.org/id/london-borough-council/sutton,London Borough of Sutton,14/11/2022,10009797,149.17, CURRYS ONLINE,LAPTOP FOR PARENT VOLUNTEER FOR THE PARENTING PROGRAMME WE ARE CURRENTLY RUNNING,Health and Wellbeing,Other Supplies & Services,A44291,
http://opendatacommunities.org/id/london-borough-council/sutton,London Borough of Sutton,27/10/2022,10009797,12.50, AMAZON.CO.UK V19H68A15,PRESENTATION FOLDER FOR CEREMONIES,Health and Wellbeing,Stationery,A43015,
http://opendatacommunities.org/id/london-borough-council/sutton,London Borough of Sutton,03/11/2022,10009797,8.32, SPOTIFY UK,MUSIC FOR WEDDINGS,Health and Wellbeing,Subscriptions,A47010,
http://opendatacommunities.org/id/london-borough-council/sutton,London Borough of Sutton,08/11/2022,10009797,10.00, B & Q 1191,PLANTS FOR WINDOWBOX,Health and Wellbeing,Miscellaneous Expenses,A49000,
http://opendatacommunities.org/id/london-borough-council/sutton,London Borough of Sutton,26/10/2022,10009797,320.00, WWW.CFAUK.ORG,Investment Practice exam registration,Resources,Training - Professional Qualification,A15024,
http://opendatacommunities.org/id/london-borough-council/sutton,London Borough of Sutton,03/11/2022,10009797,"2,900.00", WWW.ICO.ORG.UK,DATA PROTECTION FEE RENEWAL,Resources,Subscriptions,A47010,
http://opendatacommunities.org/id/london-borough-council/sutton,London Borough of Sutton,18/11/2022,10009797,152.93, PAYPAL  HARVEST,"Forecast ""unifiedgov"" Prorated Seat Changes - 12 May 2022",Resources,ICT Expenses,A45009,
http://opendatacommunities.org/id/london-borough-council/sutton,London Borough of Sutton,09/11/2022,10009797,0.61, FOREIGN EXCHANGE FEE,FOREIGN EXCHANGE FEE,Resources,ICT Expenses,A45009,
http://opendatacommunities.org/id/london-borough-council/sutton,London Borough of Sutton,08/11/2022,10009797,22.14, GOOGLE  PLAY,Developer Registration Fee,Resources,ICT Expenses,A45009,
http://opendatacommunities.org/id/london-borough-council/sutton,London Borough of Sutton,21/11/2022,10009797,4.21, FOREIGN EXCHANGE FEE,FOREIGN EXCHANGE FEE,Resources,ICT Expenses,A45009,
http://opendatacommunities.org/id/london-borough-council/sutton,London Borough of Sutton,31/10/2022,10009797,141.00, WWW.CIPS.ORG,"CIPS ANNUAL MEMBERSHIP RENEWAL  ""REDACTED - PERSONAL DATA"" ",Resources,Staff Professional Membership Fees Non Payroll,A15025,
http://opendatacommunities.org/id/london-borough-council/sutton,London Borough of Sutton,01/11/2022,10009797,151.65, WWW.DRINKSTUFF.COM,ORDERING CARAFES FOR COMMITTEE MEETIGNS,Resources,Equipment And Materials Purchase,A40000,
http://opendatacommunities.org/id/london-borough-council/sutton,London Borough of Sutton,02/11/2022,10009797,-144.00, EB  ONLINE EFFECTIVE S,REFUND FOR SOCIAL MEDIA TRAINING COURSE,Resources,Staff Development And Training,A15022,
http://opendatacommunities.org/id/london-borough-council/sutton,London Borough of Sutton,24/11/2022,10009797,600.00, WWW.LOCAL.GOV.UK,TRAINING,Resources,Printing,A43010,
http://opendatacommunities.org/id/london-borough-council/sutton,London Borough of Sutton,23/11/2022,10009797,840.00, WWW.LOCAL.GOV.UK,TRAINING,Resources,Printing,A43010,
http://opendatacommunities.org/id/london-borough-council/sutton,London Borough of Sutton,21/11/2022,10009797,279.34, MAILCHIMP,SHP Subscription - needs to be recharge to cost code  C63500 A47010,Resources,Publicity,A44266,
http://opendatacommunities.org/id/london-borough-council/sutton,London Borough of Sutton,14/11/2022,10009797,486.87, MAILCHIMP,MAILCHIMP SUBSCRIPTION,Resources,Publicity,A44266,
http://opendatacommunities.org/id/london-borough-council/sutton,London Borough of Sutton,04/11/2022,10009797,0.31, FOREIGN EXCHANGE FEE,FOREIGN EXCHANGE FEE,Resources,Publicity,A44266,
http://opendatacommunities.org/id/london-borough-council/sutton,London Borough of Sutton,03/11/2022,10009797,11.36, OTTER.AI,MONTHLY SUBSCRIPTION,Resources,Publicity,A44266,
http://opendatacommunities.org/id/london-borough-council/sutton,London Borough of Sutton,20/11/2022,10009797,20.00, OYSTER BUS AUTOLOAD,CL&G,Resources,"Grants, Contributions & Donations",A47005,
http://opendatacommunities.org/id/london-borough-council/sutton,London Borough of Sutton,10/11/2022,10009797,54.61, PAYPAL  DIGITALINSP,CL&G,Resources,"Grants, Contributions & Donations",A47005,
http://opendatacommunities.org/id/london-borough-council/sutton,London Borough of Sutton,06/11/2022,10009797,20.00, TFL OYSTER AUTO TOPUP,CL&G,Resources,"Grants, Contributions & Donations",A47005,
http://opendatacommunities.org/id/london-borough-council/sutton,London Borough of Sutton,28/10/2022,10009797,20.00, TFL OYSTER AUTO TOPUP,CL&G,Resources,"Grants, Contributions & Donations",A47005,
http://opendatacommunities.org/id/london-borough-council/sutton,London Borough of Sutton,24/11/2022,10009797,"1,000.00", CS MORRISONS GIFT CARD,purchase of Morrison gift vouchers for use in Crisis Loans and Grants,Resources,"Grants, Contributions & Donations",A47005,
http://opendatacommunities.org/id/london-borough-council/sutton,London Borough of Sutton,02/11/2022,10009797,53.70, AMZNMKTPLACE AMAZON.CO,Plug in lights required for Civic corridors due to power issues,Resources,FM - Responsive Repairs Contract - Mitie,A56098,
http://opendatacommunities.org/id/london-borough-council/sutton,London Borough of Sutton,01/11/2022,10009797,76.50, AMAZON.CO.UK 8T6NO2615,Plug in lights required for Civic corridors due to power issues,Resources,FM - Responsive Repairs Contract - Mitie,A56098,
http://opendatacommunities.org/id/london-borough-council/sutton,London Borough of Sutton,01/11/2022,10009797,114.75, AMZNMKTPLACE,Plug in lights required for Civic corridors due to power issues,Resources,FM - Responsive Repairs Contract - Mitie,A56098,
http://opendatacommunities.org/id/london-borough-council/sutton,London Borough of Sutton,09/11/2022,10009797,21.50, AMZNMKTPLACE AMAZON.CO,No nails hanging strips required for putting frames up,Resources,Equipment And Materials Repairs & Maintenance,A40051,
http://opendatacommunities.org/id/london-borough-council/sutton,London Borough of Sutton,08/11/2022,10009797,30.99, AMZNMKTPLACE,Frames for pictures,Resources,Equipment And Materials Repairs & Maintenance,A40051,
http://opendatacommunities.org/id/london-borough-council/sutton,London Borough of Sutton,03/11/2022,10009797,28.47, AMZNMKTPLACE,Cable ties required for fixing equipment to desks in Civic,Resources,Equipment And Materials Repairs & Maintenance,A40051,
http://opendatacommunities.org/id/london-borough-council/sutton,London Borough of Sutton,16/11/2022,10009797,145.00, EB  ONLINE TRAINING PR,ONLINE TRAINING,Development Growth and Regeneration,Staff Development And Training,A15022,
http://opendatacommunities.org/id/london-borough-council/sutton,London Borough of Sutton,23/11/2022,10009797,95.00, FACEBK 2MTARKTAL2,Sutton Business Sessions advertising,Development Growth and Regeneration,Publicity,A44266,
http://opendatacommunities.org/id/london-borough-council/sutton,London Borough of Sutton,18/11/2022,10009797,212.52, MEON LTD,HANDHELD LINE MARKING MACHINE AND PAINTS,Environment Housing and Neighbourhoods,Equipment And Materials Purchase,A40000,
http://opendatacommunities.org/id/london-borough-council/sutton,London Borough of Sutton,26/10/2022,10009797,28.53, AMZNMKTPLACE AMAZON.CO,WFH PRINT EQUIPMENT,Environment Housing and Neighbourhoods,Stationery,A43015,
http://opendatacommunities.org/id/london-borough-council/sutton,London Borough of Sutton,03/11/2022,10009797,31.32, AMZNMKTPLACE AMAZON.CO,WFH PRINT EQUIPMENT,Environment Housing and Neighbourhoods,Stationery,A43015,
http://opendatacommunities.org/id/london-borough-council/sutton,London Borough of Sutton,26/10/2022,10009797,"1,670.00", TSRGD.CO.UK,ONLINE ACCESS TO LIVE TSRGD DATABASE,Environment Housing and Neighbourhoods,IT Software Purchase,A45040,
http://opendatacommunities.org/id/london-borough-council/sutton,London Borough of Sutton,08/11/2022,10009797,71.67, PREMIER INN,HOTEL BOOKING,Development Growth and Regeneration,Hotel Accomodation,A46010,
http://opendatacommunities.org/id/london-borough-council/sutton,London Borough of Sutton,08/11/2022,10009797,-100.00, EDF ENERGY-DOM,REFUND FOR TOP UP OF PAYG METER AT MANOR PARK,Environment Housing and Neighbourhoods,Electricity,A21000,
http://opendatacommunities.org/id/london-borough-council/sutton,London Borough of Sutton,07/11/2022,10009797,100.00, EDF ENERGY-IVR,TOP UP OF PAYG METER AT MANOR PARK,Environment Housing and Neighbourhoods,Electricity,A21000,
http://opendatacommunities.org/id/london-borough-council/sutton,London Borough of Sutton,03/11/2022,10009797,100.00, EDF ENERGY-IVR,TOP UP OF EDF PAY AS YOU GO METER AT MANOR PARK,Environment Housing and Neighbourhoods,Electricity,A21000,
http://opendatacommunities.org/id/london-borough-council/sutton,London Borough of Sutton,11/11/2022,10009797,529.93, TRAVELODGE,EMERGENCY ACCOMMODATION FOR HOMELESS HOUSEHOLD,Environment Housing and Neighbourhoods,Bed & Breakfast,A56000,
http://opendatacommunities.org/id/london-borough-council/sutton,London Borough of Sutton,31/10/2022,10009797,160.31, HOTEL AT BOOKING.COM,EMERGENCY ACCOMMODATION FOR HOMELESS HOUSEHOLD,Environment Housing and Neighbourhoods,Bed & Breakfast,A56000,
http://opendatacommunities.org/id/london-borough-council/sutton,London Borough of Sutton,11/11/2022,10009797,45.00, WWW.NACRO.ORG.UK,DISCLOSING CRIMINAL RECORDS TRAINING PAYMENT,Peoples Services,Equipment And Materials Purchase,A40000,
http://opendatacommunities.org/id/london-borough-council/sutton,London Borough of Sutton,02/11/2022,10009797,20.83, GEN REGISTER OFFICE,BIRTH CERT NEEDED FOR LEGAL REASONS,Peoples Services,Equipment And Materials Purchase,A40000,
http://opendatacommunities.org/id/london-borough-council/sutton,London Borough of Sutton,27/10/2022,10009797,398.00, WWW.SCS.CO.UK,SOFA,Peoples Services,Miscellaneous Expenses,A49000,
http://opendatacommunities.org/id/london-borough-council/sutton,London Borough of Sutton,08/11/2022,10009797,5.62, MCDONALDS," ""REDACTED - PERSONAL DATA""  ACTIVITY",Peoples Services,Miscellaneous Expenses,A49000,
http://opendatacommunities.org/id/london-borough-council/sutton,London Borough of Sutton,25/11/2022,10009797,41.67, DUNELM SOFTFURNISHINGS,ITEM NEEDED FOR LEAVING CARE YOUNG PERSON,Peoples Services,Set Up Costs - Children Leaving Care,A61021,
http://opendatacommunities.org/id/london-borough-council/sutton,London Borough of Sutton,24/11/2022,10009797,290.83, PYN BEDS CO UK,ITEM NEEDED FOR LEAVING CARE YOUNG PERSON,Peoples Services,Set Up Costs - Children Leaving Care,A61021,
http://opendatacommunities.org/id/london-borough-council/sutton,London Borough of Sutton,22/11/2022,10009797,59.97, WWW.SCREWFIX.COM,ITEM NEEDED FOR LEAVING CARE YOUNG PERSON,Peoples Services,Set Up Costs - Children Leaving Care,A61021,
http://opendatacommunities.org/id/london-borough-council/sutton,London Borough of Sutton,23/11/2022,10009797,391.66, WWW.THERANGE.CO.UK,ITEM NEEDED FOR LEAVING CARE YOUNG PERSON,Peoples Services,Set Up Costs - Children Leaving Care,A61021,
http://opendatacommunities.org/id/london-borough-council/sutton,London Borough of Sutton,23/11/2022,10009797,676.67, CURRYS ONLINE,ITEM NEEDED FOR LEAVING CARE YOUNG PERSON,Peoples Services,Set Up Costs - Children Leaving Care,A61021,
http://opendatacommunities.org/id/london-borough-council/sutton,London Borough of Sutton,23/11/2022,10009797,409.63, SP CARPET WAREHOUSE,ITEM NEEDED FOR LEAVING CARE YOUNG PERSON,Peoples Services,Set Up Costs - Children Leaving Care,A61021,
http://opendatacommunities.org/id/london-borough-council/sutton,London Borough of Sutton,23/11/2022,10009797,24.99, WWW.STUDIO.CO.UK,ITEM NEEDED FOR LEAVING CARE YOUNG PERSON,Peoples Services,Set Up Costs - Children Leaving Care,A61021,
http://opendatacommunities.org/id/london-borough-council/sutton,London Borough of Sutton,23/11/2022,10009797,203.33, IKEA LTD SHOP ONLINE,ITEM NEEDED FOR LEAVING CARE YOUNG PERSON,Peoples Services,Set Up Costs - Children Leaving Care,A61021,
http://opendatacommunities.org/id/london-borough-council/sutton,London Borough of Sutton,22/11/2022,10009797,19.16, WWW.SCREWFIX.COM,ITEM NEEDED FOR LEAVING CARE YOUNG PERSON,Peoples Services,Set Up Costs - Children Leaving Care,A61021,
http://opendatacommunities.org/id/london-borough-council/sutton,London Borough of Sutton,03/11/2022,10009797,119.16, WF  UK3825283294,WAYFAIR ORDER FOR CLIENT,Peoples Services,Set Up Costs - Children Leaving Care,A61021,
http://opendatacommunities.org/id/london-borough-council/sutton,London Borough of Sutton,25/11/2022,10009797,43.32, WWW.STUDIO.CO.UK,ITEM NEEDED FOR LEAVING CARE YOUNG PERSON,Peoples Services,Set Up Costs - Children Leaving Care,A61021,
http://opendatacommunities.org/id/london-borough-council/sutton,London Borough of Sutton,07/11/2022,10009797,340.00, CURRYS ONLINE,ITEM NEEDED FOR CLIENT,Peoples Services,Set Up Costs - Children Leaving Care,A61021,
http://opendatacommunities.org/id/london-borough-council/sutton,London Borough of Sutton,25/11/2022,10009797,41.67, DUNELM SOFTFURNISHINGS,RUG PURCHASED FOR SERVICE USER,Peoples Services,Set Up Costs - Children Leaving Care,A61021,
http://opendatacommunities.org/id/london-borough-council/sutton,London Borough of Sutton,25/11/2022,10009797,18.77, TENPIN.CO.UK,CONTACT FOR YOUNG PERSON AND FAMILY,Peoples Services,Miscellaneous Expenses,A49000,
http://opendatacommunities.org/id/london-borough-council/sutton,London Borough of Sutton,15/11/2022,10009797,83.33, ICESCAPE TICKETS,ICE SKATING TICKETS FOR A CONTACT,Peoples Services,Miscellaneous Expenses,A49000,
http://opendatacommunities.org/id/london-borough-council/sutton,London Borough of Sutton,15/11/2022,10009797,82.00, PREMIER INN,PREMIER INN HOTEL PAYMENT,Peoples Services,Approved Lodgings,A61000,
http://opendatacommunities.org/id/london-borough-council/sutton,London Borough of Sutton,31/10/2022,10009797,12.00, LONDON COUNCILS,EG FREEDOM PASS,Peoples Services,C.C.A Travel & Subsistance,A61010,
http://opendatacommunities.org/id/london-borough-council/sutton,London Borough of Sutton,04/11/2022,10009797,15.17, WWW.WIGHTLINK.CO.UK,TRAVEL NEEDED,Peoples Services,C.C.A Travel & Subsistance,A61010,
http://opendatacommunities.org/id/london-borough-council/sutton,London Borough of Sutton,07/11/2022,10009797,134.02, EASYJET,FLIGHT NEEDED FOR SOCIAL WORKER,Peoples Services,C.C.A Travel & Subsistance,A61010,
http://opendatacommunities.org/id/london-borough-council/sutton,London Borough of Sutton,04/11/2022,10009797,192.87, ARGOS LTD,ITEM NEEDED FOR CLIENT,Peoples Services,Set Up Costs - Children Leaving Care,A61021,
http://opendatacommunities.org/id/london-borough-council/sutton,London Borough of Sutton,08/11/2022,10009797,-165.83, ARGOS LTD,REFUNDED AS COULD NOT DELIVER,Peoples Services,Set Up Costs - Children Leaving Care,A61021,
http://opendatacommunities.org/id/london-borough-council/sutton,London Borough of Sutton,11/11/2022,10009797,-27.03, ARGOS LTD,REFUNDED AS COULD NOT DELIVER,Peoples Services,Set Up Costs - Children Leaving Care,A61021,
http://opendatacommunities.org/id/london-borough-council/sutton,London Borough of Sutton,22/11/2022,10009797,20.00, MICHAEL'S STORE,FYH OYSTER CARD,Peoples Services,C.C.A Travel & Subsistance,A61010,
http://opendatacommunities.org/id/london-borough-council/sutton,London Borough of Sutton,24/11/2022,10009797,6.99, AMZNMKTPLACE,ITEM FOR A YOUNG PERSON AT WILLOW RISE CHILDRENS HOME (100%),Peoples Services,Miscellaneous Expenses,A49000,
http://opendatacommunities.org/id/london-borough-council/sutton,London Borough of Sutton,21/11/2022,10009797,20.99, AMZNMKTPLACE,ITEM FOR A YOUNG PERSON AT WILLOW RISE CHILDRENS HOME (100%),Peoples Services,Miscellaneous Expenses,A49000,
http://opendatacommunities.org/id/london-borough-council/sutton,London Borough of Sutton,20/11/2022,10009797,22.07, HPI INSTANT INK UK,INK REQUIRED FOR WILLOW RISE,Peoples Services,Miscellaneous Expenses,A49000,
http://opendatacommunities.org/id/london-borough-council/sutton,London Borough of Sutton,20/11/2022,10009797,10.99, AMZNMKTPLACE,ITEM FOR A YOUNG PERSON AT WILLOW RISE CHILDRENS HOME (100%),Peoples Services,Miscellaneous Expenses,A49000,
http://opendatacommunities.org/id/london-borough-council/sutton,London Borough of Sutton,20/11/2022,10009797,11.30, AMZNMKTPLACE,"SPLIT - KEPLIN COLLAPSIBLE LARGE LAUNDRY BASKET - DARK BLUE, 82 L | FOLDABLE HAMPER BASKET | EASY TO CARRY WASHING BASKETS FOR LAUNDRY | CLOTHES HAMPER FOR KI (100%)",Peoples Services,Miscellaneous Expenses,A49000,
http://opendatacommunities.org/id/london-borough-council/sutton,London Borough of Sutton,20/11/2022,10009797,5.99, AMZNMKTPLACE,ITEM FOR A YOUNG PERSON AT WILLOW RISE CHILDRENS HOME (100%),Peoples Services,Miscellaneous Expenses,A49000,
http://opendatacommunities.org/id/london-borough-council/sutton,London Borough of Sutton,20/11/2022,10009797,18.99, AMZNMKTPLACE,ITEM FOR A YOUNG PERSON AT WILLOW RISE CHILDRENS HOME (100%),Peoples Services,Miscellaneous Expenses,A49000,
http://opendatacommunities.org/id/london-borough-council/sutton,London Borough of Sutton,19/11/2022,10009797,15.30, AMZNBUSINESS U54544E45,ITEM FOR A YOUNG PERSON AT WILLOW RISE CHILDRENS HOME (100%),Peoples Services,Miscellaneous Expenses,A49000,
http://opendatacommunities.org/id/london-borough-council/sutton,London Borough of Sutton,19/11/2022,10009797,10.99, AMZNMKTPLACE,ITEM FOR A YOUNG PERSON AT WILLOW RISE CHILDRENS HOME (100%),Peoples Services,Miscellaneous Expenses,A49000,
http://opendatacommunities.org/id/london-borough-council/sutton,London Borough of Sutton,19/11/2022,10009797,17.98, AMZNMKTPLACE,ITEM FOR A YOUNG PERSON AT WILLOW RISE CHILDRENS HOME (100%),Peoples Services,Miscellaneous Expenses,A49000,
http://opendatacommunities.org/id/london-borough-council/sutton,London Borough of Sutton,18/11/2022,10009797,14.95, AMZNMKTPLACE,ITEM FOR A YOUNG PERSON AT WILLOW RISE CHILDRENS HOME (100%),Peoples Services,Miscellaneous Expenses,A49000,
http://opendatacommunities.org/id/london-borough-council/sutton,London Borough of Sutton,18/11/2022,10009797,24.99, AMZNMKTPLACE,ITEM FOR A YOUNG PERSON AT WILLOW RISE CHILDRENS HOME (100%),Peoples Services,Miscellaneous Expenses,A49000,
http://opendatacommunities.org/id/london-borough-council/sutton,London Borough of Sutton,15/11/2022,10009797,8.33, TRANSPORT FOR LONDON,TRANSPORT FOR YOUNG PERSON AT WILLOW RISE CHILDRENS HOME,Peoples Services,Miscellaneous Expenses,A49000,
http://opendatacommunities.org/id/london-borough-council/sutton,London Borough of Sutton,13/11/2022,10009797,48.93, AMZNBUSINESS V237W8LT5,ITEM FOR A YOUNG PERSON AT WILLOW RISE CHILDRENS HOME (100%),Peoples Services,Miscellaneous Expenses,A49000,
http://opendatacommunities.org/id/london-borough-council/sutton,London Borough of Sutton,13/11/2022,10009797,6.07, AMZNMKTPLACE,ITEM FOR A YOUNG PERSON AT WILLOW RISE CHILDRENS HOME (100%),Peoples Services,Miscellaneous Expenses,A49000,
http://opendatacommunities.org/id/london-borough-council/sutton,London Borough of Sutton,13/11/2022,10009797,10.99, AMZNMKTPLACE,ITEM FOR A YOUNG PERSON AT WILLOW RISE CHILDRENS HOME (100%),Peoples Services,Miscellaneous Expenses,A49000,
http://opendatacommunities.org/id/london-borough-council/sutton,London Borough of Sutton,10/11/2022,10009797,54.98, AMZNMKTPLACE AMAZON.CO,ITEM FOR A YOUNG PERSON AT WILLOW RISE CHILDRENS HOME (100%),Peoples Services,Miscellaneous Expenses,A49000,
http://opendatacommunities.org/id/london-borough-council/sutton,London Borough of Sutton,13/11/2022,10009797,7.99, AMZNMKTPLACE,ITEM FOR A YOUNG PERSON AT WILLOW RISE CHILDRENS HOME (100%),Peoples Services,Miscellaneous Expenses,A49000,
http://opendatacommunities.org/id/london-borough-council/sutton,London Borough of Sutton,13/11/2022,10009797,18.49, AMZNMKTPLACE,ITEM FOR A YOUNG PERSON AT WILLOW RISE CHILDRENS HOME (56.93%),Peoples Services,Miscellaneous Expenses,A49000,
http://opendatacommunities.org/id/london-borough-council/sutton,London Borough of Sutton,13/11/2022,10009797,13.99, AMZNMKTPLACE,ITEM FOR A YOUNG PERSON AT WILLOW RISE CHILDRENS HOME (43.07%),Peoples Services,Miscellaneous Expenses,A49000,
http://opendatacommunities.org/id/london-borough-council/sutton,London Borough of Sutton,11/11/2022,10009797,21.80, AMZNMKTPLACE,ITEM FOR A YOUNG PERSON AT WILLOW RISE CHILDRENS HOME (100%),Peoples Services,Miscellaneous Expenses,A49000,
http://opendatacommunities.org/id/london-borough-council/sutton,London Borough of Sutton,11/11/2022,10009797,81.81, ASDA GROCERIES ONLINE,FOOD SHOPPING FOR WILLOW RISE CHILDRENS HOME,Peoples Services,Miscellaneous Expenses,A49000,
http://opendatacommunities.org/id/london-borough-council/sutton,London Borough of Sutton,03/11/2022,10009797,69.00, AMZNMKTPLACE,ITEM FOR A YOUNG PERSON AT WILLOW RISE CHILDRENS HOME (100%),Peoples Services,Miscellaneous Expenses,A49000,
http://opendatacommunities.org/id/london-borough-council/sutton,London Borough of Sutton,25/11/2022,10009797,28.00, WWW.OXYGENFREEJUMPING.,OXYGEN FREE JUMPING PAYMENT FOR CLIENT,Peoples Services,Miscellaneous Expenses,A49000,
http://opendatacommunities.org/id/london-borough-council/sutton,London Borough of Sutton,31/10/2022,10009797,80.85, COSTCO ONLINE UK LIMIT,FOOD REQUIRED FOR WILLOW RISE CHILDRENS HOME,Peoples Services,Miscellaneous Expenses,A49000,
http://opendatacommunities.org/id/london-borough-council/sutton,London Borough of Sutton,29/10/2022,10009797,12.98, AMZNMKTPLACE,"SPLIT - MAXI NATURE PLASTIC CUPS SET OF 8 (650 ML) - MICROWAVE, DISHWASHER & FREEZER SAFE GLASSES - UNBREAKABLE, LIGHTWEIGHT, DURABLE PLASTIC DRINKING CUPS - (100%)",Peoples Services,Miscellaneous Expenses,A49000,
http://opendatacommunities.org/id/london-borough-council/sutton,London Borough of Sutton,28/10/2022,10009797,30.00, LONDON DUNGEON,ACTIVITY FOR YOUNG PERSON,Peoples Services,Client Care/Assistance,A61011,
http://opendatacommunities.org/id/london-borough-council/sutton,London Borough of Sutton,31/10/2022,10009797,132.50, TVLICENSING.CO.UK,TV LICENSE NEEDED FOR HOME,Peoples Services,Miscellaneous Expenses,A49000,
http://opendatacommunities.org/id/london-borough-council/sutton,London Borough of Sutton,31/10/2022,10009797,132.50, TVLICENSING.CO.UK,TV LICENSE NEEDED FOR HOME,Peoples Services,Miscellaneous Expenses,A49000,
http://opendatacommunities.org/id/london-borough-council/sutton,London Borough of Sutton,31/10/2022,10009797,132.50, TVLICENSING.CO.UK,TV LICENSE NEEDED FOR HOME,Peoples Services,Miscellaneous Expenses,A49000,
http://opendatacommunities.org/id/london-borough-council/sutton,London Borough of Sutton,15/11/2022,10009797,299.15, AMZNMKTPLACE,ITEM NEEDED FOR A CLIENT (93.49%),Peoples Services,Miscellaneous Expenses,A49000,
http://opendatacommunities.org/id/london-borough-council/sutton,London Borough of Sutton,15/11/2022,10009797,20.83, AMZNMKTPLACE,ITEM NEEDED FOR A CLIENT (6.51%),Peoples Services,Miscellaneous Expenses,A49000,
http://opendatacommunities.org/id/london-borough-council/sutton,London Borough of Sutton,26/10/2022,10009797,5.42, HOTEL ON BOOKING.COM,HOTEL STAY REQUIRED FOR YOUNG PERSON,Peoples Services,C.C.A Travel & Subsistance,A61010,
http://opendatacommunities.org/id/london-borough-council/sutton,London Borough of Sutton,04/11/2022,10009797,48.29, ARGOS LTD,ITEM NEEDED FOR CLIENT,Peoples Services,Set Up Costs - Children Leaving Care,A61021,
http://opendatacommunities.org/id/london-borough-council/sutton,London Borough of Sutton,16/11/2022,10009797,160.58, ARGOS LTD,ITEMS NEEDED FOR CLIENT,Peoples Services,Set Up Costs - Children Leaving Care,A61021,
http://opendatacommunities.org/id/london-borough-council/sutton,London Borough of Sutton,17/11/2022,10009797,159.90, ZOOM.US 888-799-9666,SUBSCRIPTION NEEDED FOR TEAM,Peoples Services,Subscriptions,A47010,
http://opendatacommunities.org/id/london-borough-council/sutton,London Borough of Sutton,30/10/2022,10009797,159.90, ZOOM.US 888-799-9666,SUBSCRIPTION FOR TEAM,Peoples Services,Subscriptions,A47010,
http://opendatacommunities.org/id/london-borough-council/sutton,London Borough of Sutton,11/11/2022,10009797,25.00, GEN REGISTER OFFICE,BIRTH CERTIFICATE PAYMENT,Peoples Services,Equipment And Materials Purchase,A40000,
http://opendatacommunities.org/id/london-borough-council/sutton,London Borough of Sutton,26/10/2022,10009797,9.30, POUNDLAND LTD 1211,CHRISTMAS CARD PAYMENT FOR YOUNG PEOPLE,Peoples Services,Equipment And Materials Purchase,A40000,
http://opendatacommunities.org/id/london-borough-council/sutton,London Borough of Sutton,02/11/2022,10009797,24.75, WANDSWORTH COUNCIL,BIRTH CERT,Peoples Services,Equipment And Materials Purchase,A40000,
http://opendatacommunities.org/id/london-borough-council/sutton,London Borough of Sutton,27/10/2022,10009797,-11.00, SUTTON REGISTER OFFICE,BIRTH CERT REFUND,Peoples Services,Equipment And Materials Purchase,A40000,
http://opendatacommunities.org/id/london-borough-council/sutton,London Borough of Sutton,02/11/2022,10009797,18.33, SUTTON REGISTER OFFICE,BIRTH CERT NEEDED FOR LEGAL REASONS,Peoples Services,Equipment And Materials Purchase,A40000,
http://opendatacommunities.org/id/london-borough-council/sutton,London Borough of Sutton,27/10/2022,10009797,36.00, AMAZON.CO.UK P68X806B5,SPLIT - YOU ROCK - AMAZON.CO.UK EGIFT VOUCHER (100%),Peoples Services,C.C.A Travel & Subsistance,A61010,
http://opendatacommunities.org/id/london-borough-council/sutton,London Borough of Sutton,18/11/2022,10009797,10.80, EMPIRE CINEMAS,4 X CINEMA TICKETS PAYMENT,Peoples Services,Client Care/Assistance,A61011,
http://opendatacommunities.org/id/london-borough-council/sutton,London Borough of Sutton,15/11/2022,10009797,"1,899.98", IMM HEALTH SURCHAR,USD 2224.60 - A61011 G03180 9999 - IMMIGRATION HEALTH SURCHARGE (IHS) .PNG,Peoples Services,Client Care/Assistance,A61011,
http://opendatacommunities.org/id/london-borough-council/sutton,London Borough of Sutton,07/11/2022,10009797,"3,199.00", C2E834700184L UKVI,3199.00 - A61011 G03180 9999 - VISA FOR MONALISA CHISHATO .PNG,Peoples Services,Client Care/Assistance,A61011,
http://opendatacommunities.org/id/london-borough-council/sutton,London Borough of Sutton,16/11/2022,10009797,52.25, FOREIGN EXCHANGE FEE,FEE FOR USD 2224.60 - A61011 G03180 9999 - IMMIGRATION HEALTH SURCHARGE (IHS) .PNG,Peoples Services,Client Care/Assistance,A61011,
http://opendatacommunities.org/id/london-borough-council/sutton,London Borough of Sutton,24/11/2022,10009797,158.67, WWW.BIGYELLOW.CO.UK,INVOICE PAYMENT FOR SERVICE USERS SELF STORAGE.,Peoples Services,Client Care/Assistance,A61011,
http://opendatacommunities.org/id/london-borough-council/sutton,London Borough of Sutton,01/11/2022,10009797,-410.00, ARGOS LTD,"KICKSTART PROJECT ""REDACTED - PERSONAL DATA"" ",Peoples Services,Furniture - Purchase,A40015,
http://opendatacommunities.org/id/london-borough-council/sutton,London Borough of Sutton,31/10/2022,10009797,200.00, ARGOS LTD,"KICKSTART PROJECT  ""REDACTED - PERSONAL DATA"" ",Peoples Services,Furniture - Purchase,A40015,
http://opendatacommunities.org/id/london-borough-council/sutton,London Borough of Sutton,31/10/2022,10009797,677.43, ARGOS LTD,"KICKSTART PROJECT ""REDACTED - PERSONAL DATA"" ",Peoples Services,Furniture - Purchase,A40015,
http://opendatacommunities.org/id/london-borough-council/sutton,London Borough of Sutton,31/10/2022,10009797,"1,640.00", ARGOS LTD,"KICKSTART PROJECT  ""REDACTED - PERSONAL DATA"" ",Peoples Services,Furniture - Purchase,A40015,
http://opendatacommunities.org/id/london-borough-council/sutton,London Borough of Sutton,16/11/2022,10009797,219.99, ARGOS LTD,ARGOS ORDER,Peoples Services,Miscellaneous Expenses,A49000,
http://opendatacommunities.org/id/london-borough-council/sutton,London Borough of Sutton,22/11/2022,10009797,44.17, ARGOS LTD,ITEMS NEEDED FOR CLIENT,Peoples Services,Approved Lodgings,A61000,
http://opendatacommunities.org/id/london-borough-council/sutton,London Borough of Sutton,15/11/2022,10009797,112.99, EASYJET,EASYJET FLIGHT PAYMENT,Peoples Services,Client Care/Assistance,A61011,
http://opendatacommunities.org/id/london-borough-council/sutton,London Borough of Sutton,16/11/2022,10009797,83.52, BRITISH A,BRITISH AIRWAYS FLIGHT PAYMENT FOR IRO,Peoples Services,Client Care/Assistance,A61011,
http://opendatacommunities.org/id/london-borough-council/sutton,London Borough of Sutton,24/11/2022,10009797,12.50, WALLINGTON CARS & COUR,"TAXI FOR CYP NOW AWARDS CEREMONY - ORIGINAL COST OF 80 BOOKED BY BUSINESS SUPPORT (RECEIPT ATTACHED), ADDITIONAL 15 FOR EXTRA WAITING (NO RECEIPT RECEIVED)",Peoples Services,Hire of Transport - Non Staff,A32000,
http://opendatacommunities.org/id/london-borough-council/sutton,London Borough of Sutton,24/11/2022,10009797,12.50, WALLINGTON CARS & COUR,"TAXI FOR CYP NOW AWARDS CEREMONY - ORIGINAL COST OF 80 BOOKED BY BUSINESS SUPPORT (RECEIPT ATTACHED), ADDITIONAL 15 FOR EXTRA STOPS (NO RECEIPT RECEIVED)",Peoples Services,Hire of Transport - Non Staff,A32000,
http://opendatacommunities.org/id/london-borough-council/sutton,London Borough of Sutton,25/11/2022,10009797,259.46, HOLIDAY INNS,HOTEL FOR LSCP BOARD CHAIR,Peoples Services,Consultancy Services - Other,A44065,
http://opendatacommunities.org/id/london-borough-council/sutton,London Borough of Sutton,23/11/2022,10009797,40.00, WALLINGTON CARS & COUR,ADDITIONAL PAYMENT FOR CAB FOR CLIENT,Peoples Services,C.C.A Travel & Subsistance,A61010,
http://opendatacommunities.org/id/london-borough-council/sutton,London Borough of Sutton,18/11/2022,10009797,80.00, WALLINGTON CARS & COUR,CAB PAYMENT FOR CLIENT,Peoples Services,C.C.A Travel & Subsistance,A61010,
http://opendatacommunities.org/id/london-borough-council/sutton,London Borough of Sutton,22/11/2022,10009797,41.58, AMZNMKTPLACE AMAZON.CO,TOYS NEEDED FOR SUTTON FAMILY CENTRE G03400 (100%),Peoples Services,Miscellaneous Expenses,A49000,
http://opendatacommunities.org/id/london-borough-council/sutton,London Borough of Sutton,20/11/2022,10009797,39.55, AMZNMKTPLACE,AMAZON,Peoples Services,Client Care/Assistance,A61011,
http://opendatacommunities.org/id/london-borough-council/sutton,London Borough of Sutton,20/11/2022,10009797,9.69, AMZNMKTPLACE,AMAZON,Peoples Services,Client Care/Assistance,A61011,
http://opendatacommunities.org/id/london-borough-council/sutton,London Borough of Sutton,20/11/2022,10009797,98.09, AMZNMKTPLACE,AMAZON,Peoples Services,Client Care/Assistance,A61011,
http://opendatacommunities.org/id/london-borough-council/sutton,London Borough of Sutton,20/11/2022,10009797,9.47, AMZNMKTPLACE,AMAZON,Peoples Services,Client Care/Assistance,A61011,
http://opendatacommunities.org/id/london-borough-council/sutton,London Borough of Sutton,20/11/2022,10009797,22.75, AMZNMKTPLACE,AMAZON,Peoples Services,Client Care/Assistance,A61011,
http://opendatacommunities.org/id/london-borough-council/sutton,London Borough of Sutton,21/11/2022,10009797,53.75, TESCO STORES 5999,TESCO FOOD DELIVERY FOR SUTTON FAMILY CENTRE,Peoples Services,Client Care/Assistance,A61011,
http://opendatacommunities.org/id/london-borough-council/sutton,London Borough of Sutton,16/11/2022,10009797,35.40, VIVA ACCESS LTD," ""REDACTED - PERSONAL DATA"" BATHROOM, ADAPTION & DESIGN PART 1 TRAINING 09/02/23",Peoples Services,Staff Development And Training,A15022,
http://opendatacommunities.org/id/london-borough-council/sutton,London Borough of Sutton,04/11/2022,10009797,42.00, VIVA ACCESS LTD," ""REDACTED - PERSONAL DATA""  DISABLED FACILITIES GRANT LEVEL 2 - 15 12 22",Peoples Services,Staff Development And Training,A15022,
http://opendatacommunities.org/id/london-borough-council/sutton,London Borough of Sutton,27/10/2022,10009797,24.00, INTELLIGENT E LEARNING,LEARNING,Peoples Services,Client Care/Assistance,A61011,
http://opendatacommunities.org/id/london-borough-council/sutton,London Borough of Sutton,25/11/2022,10009797,22.00, GO BOWLING,BOWLING,Peoples Services,Client Activities,A56028,
http://opendatacommunities.org/id/london-borough-council/sutton,London Borough of Sutton,14/11/2022,10009797,14.00, GEN REGISTER OFFICE,BIRTH CERTIFICATE PAYMENT,Peoples Services,Equipment And Materials Purchase,A40000,
http://opendatacommunities.org/id/london-borough-council/sutton,London Borough of Sutton,18/11/2022,10009797,11.67, FIRST BUS - WEB,TRAVEL FOR SOCIAL WORKER FOR A VISIT,Peoples Services,Equipment And Materials Purchase,A40000,
http://opendatacommunities.org/id/london-borough-council/sutton,London Borough of Sutton,24/11/2022,10009797,"1,187.46", MINICABIT,CAB PAYMENT FOR CLIENT,Peoples Services,Client Care/Assistance,A61011,
http://opendatacommunities.org/id/london-borough-council/sutton,London Borough of Sutton,02/11/2022,10009797,79.00, B&Q MARKETPLACE,BEDFRAME PAYMENT FOR CLIENT,Peoples Services,Client Care/Assistance,A61011,
http://opendatacommunities.org/id/london-borough-council/sutton,London Borough of Sutton,16/11/2022,10009797,13.36, FOREIGN EXCHANGE FEE,"FEES FOR USD 569.00 - A61011 G03840 9999 - VISA APPLICATION FOR ""REDACTED - PERSONAL DATA"" ",Peoples Services,Client Care/Assistance,A61011,
http://opendatacommunities.org/id/london-borough-council/sutton,London Borough of Sutton,15/11/2022,10009797,485.97, UKVI 3JL0033923717,"USD 569.00 - A61011 G03840 9999 - VISA APPLICATION FOR ""REDACTED - PERSONAL DATA"" ",Peoples Services,Client Care/Assistance,A61011,
http://opendatacommunities.org/id/london-borough-council/sutton,London Borough of Sutton,02/11/2022,10009797,9.17, SUTTON REGISTER OFFICE,BIRTH CERT NEEDED FOR LEGAL REASONS,Peoples Services,Equipment And Materials Purchase,A40000,
http://opendatacommunities.org/id/london-borough-council/sutton,London Borough of Sutton,02/11/2022,10009797,104.03, STORAGEMART UK #5215,STORAGE FOR CLIENT,Peoples Services,Miscellaneous Expenses,A49000,
http://opendatacommunities.org/id/london-borough-council/sutton,London Borough of Sutton,25/11/2022,10009797,255.54, SP BIG BROWN CARRIER,PPE PACKAGING,Peoples Services,Miscellaneous Expenses,A49000,
http://opendatacommunities.org/id/london-borough-council/sutton,London Borough of Sutton,25/11/2022,10009797,280.00, 2PROTECT MOBILITY,PPE PACKAGING,Peoples Services,Miscellaneous Expenses,A49000,
http://opendatacommunities.org/id/london-borough-council/sutton,London Borough of Sutton,12/11/2022,10009797,33.00, AMZNMKTPLACE,"SPLIT - OMNITEX TYPE IIR TIE BACK SURGICAL FACE MASK, PREMIUM TIE-ON 3PLY EN14683 MEDICAL GRADE 2R & SPLASH RESISTANT, BRITISH BRAND (105.32%)",Peoples Services,Miscellaneous Expenses,A49000,
http://opendatacommunities.org/id/london-borough-council/sutton,London Borough of Sutton,12/11/2022,10009797,-1.98, AMZNMKTPLACE,BALANCING ENTRY AMOUNT (-15.96%),Peoples Services,Miscellaneous Expenses,A49000,
http://opendatacommunities.org/id/london-borough-council/sutton,London Borough of Sutton,08/11/2022,10009797,0.96, QUICKLUTION,GOOGLE APP,Peoples Services,Miscellaneous Expenses,A49000,
http://opendatacommunities.org/id/london-borough-council/sutton,London Borough of Sutton,07/11/2022,10009797,29.16, QUICKLUTION,GOOGLE APP LICENCE,Peoples Services,Miscellaneous Expenses,A49000,
http://opendatacommunities.org/id/london-borough-council/sutton,London Borough of Sutton,01/11/2022,10009797,"1,990.00", SOCIAL CARE TV,ON LINE TRAINING COURSES FOR CARE CERTIFICATE,Peoples Services,Miscellaneous Expenses,A49000,
http://opendatacommunities.org/id/london-borough-council/sutton,London Borough of Sutton,28/10/2022,10009797,418.29, CS MORRISONS GIFT CARD,EMERGENCY FOOD VOUCHERS FOR START CLIENTS,Peoples Services,Miscellaneous Expenses,A49000,
http://opendatacommunities.org/id/london-borough-council/sutton,London Borough of Sutton,27/10/2022,10009797,422.30, ASDA STORES LTD,EMERGENCY FOOD VOUCHERS FOR START CLIENTS,Peoples Services,Miscellaneous Expenses,A49000,
http://opendatacommunities.org/id/london-borough-council/sutton,London Borough of Sutton,27/10/2022,10009797,420.21, HIGH STREET VOUCHERS,EMERGENCY FOOD VOUCHERS FOR START CLIENTS,Peoples Services,Miscellaneous Expenses,A49000,
http://opendatacommunities.org/id/london-borough-council/sutton,London Borough of Sutton,26/10/2022,10009797,62.50, WILKO RETAIL LIMITED,MICROWAVE FOR START CLIENT,Peoples Services,Miscellaneous Expenses,A49000,
http://opendatacommunities.org/id/london-borough-council/sutton,London Borough of Sutton,21/11/2022,10009797,176.67, BECOMECHARITY,CHARITY DONATION,Peoples Services,Equipment And Materials Purchase,A40000,
http://opendatacommunities.org/id/london-borough-council/sutton,London Borough of Sutton,26/10/2022,10009797,135.00, WWW.TIGERLILYTRAINING.,EMERGENCY FIRST AID TRAINING FOR SOCIAL WORKER,Peoples Services,Equipment And Materials Purchase,A40000,
http://opendatacommunities.org/id/london-borough-council/sutton,London Borough of Sutton,27/10/2022,10009797,970.96, TRAVELODGE,TRAVELODGE PAYMENT FOR CLIENT,Peoples Services,Client Care/Assistance,A61011,
http://opendatacommunities.org/id/london-borough-council/sutton,London Borough of Sutton,24/11/2022,10009797,12.94, ROYAL BRITISH LEGION,POPPY APPEAL DONATION CASH,Corporate Balance Sheet,Sutton College,B32183,
http://opendatacommunities.org/id/london-borough-council/sutton,London Borough of Sutton,16/11/2022,10009797,706.80, PROMO PARROT,BALANCING ENTRY AMOUNT (100%),Peoples Services,Conference Expenses,A43075,
http://opendatacommunities.org/id/london-borough-council/sutton,London Borough of Sutton,21/11/2022,10009797,18.41, WM MORRISONS STORE,MORRISONS VARIOUS REFRESHMENTS FOR EXIT HATE TALK 211122 18.41,Health and Wellbeing,Publicity,A44266,
http://opendatacommunities.org/id/london-borough-council/sutton,London Borough of Sutton,24/11/2022,10009797,49.00, CPD ONLINE COLLEGE," ""REDACTED - PERSONAL DATA""  CPD SAFEGUARDING 241122 58.80",Health and Wellbeing,Staff Development And Training,A15022,
http://opendatacommunities.org/id/london-borough-council/sutton,London Borough of Sutton,25/11/2022,10009797,13.90, AMAZON.CO.UK 1I6N13TH4,"AMAZON BASICS - MICROSDXC, 64 GB, WITH SD ADAPTER, A2, U3, READ SPEEDUP TO 100 MB/S, 2-PACK",Health and Wellbeing,Equipment And Materials Purchase,A40000,
http://opendatacommunities.org/id/london-borough-council/sutton,London Borough of Sutton,15/11/2022,10009797,3.55, FOREIGN EXCHANGE FEE,FOREIGN EXCHANGE FEE FOR IT GOOGLE CLASSROOM,Health and Wellbeing,IT Software Purchase,A45040,
http://opendatacommunities.org/id/london-borough-council/sutton,London Borough of Sutton,14/11/2022,10009797,107.51, MTMOMK,IT GOOGLE CLASSROOM MANAGER,Health and Wellbeing,IT Software Purchase,A45040,
http://opendatacommunities.org/id/london-borough-council/sutton,London Borough of Sutton,11/11/2022,10009797,59.99, 123 REG LTD 001983743,IT DOMAIN SSL RENEWAL,Health and Wellbeing,IT Software Purchase,A45040,
http://opendatacommunities.org/id/london-borough-council/sutton,London Borough of Sutton,01/11/2022,10009797,57.76, GSUITE_SUTTONCOLLEGE.A,GOOGLE CLOUD EMEA LIMITED 4593636433,Health and Wellbeing,Subscriptions,A47010,
http://opendatacommunities.org/id/london-borough-council/sutton,London Borough of Sutton,07/11/2022,10009797,47.99, ADOBE STOCK,ADOBE 071122 47.99,Health and Wellbeing,Publicity,A44266,
http://opendatacommunities.org/id/london-borough-council/sutton,London Borough of Sutton,31/10/2022,10009797,89.86, ADS MP3EJGX6A2,FACEBOOK AD 89.86 311022,Health and Wellbeing,Publicity,A44266,
http://opendatacommunities.org/id/london-borough-council/sutton,London Borough of Sutton,30/10/2022,10009797,166.03, MAILCHIMP,MAILCHIMP 301022 199.24,Health and Wellbeing,Publicity,A44266,
http://opendatacommunities.org/id/london-borough-council/sutton,London Borough of Sutton,15/11/2022,10009797,500.00, FACEBK YU2WAHB6A2,FACEBOOK AD SPRING 23 151122 500.00,Health and Wellbeing,Publicity,A44266,
http://opendatacommunities.org/id/london-borough-council/sutton,London Borough of Sutton,24/11/2022,10009797,44.96, WWW.THERANGE.CO.UK,ASTONISH ANTIBACTERIAL SURFACE CLEANSER SPRAY,Health and Wellbeing,Cleaning Supplies,A27020,
http://opendatacommunities.org/id/london-borough-council/sutton,London Borough of Sutton,19/11/2022,10009797,94.16, AMZNMKTPLACE,AMAZON URN INSURANCE CLAIM 181122 112.99,Health and Wellbeing,Insurance Claims,A44261,
http://opendatacommunities.org/id/london-borough-council/sutton,London Borough of Sutton,24/11/2022,10009797,25.01, SETON,SHEET OF 20 40X40 HARMFUL/IRRITANT,Health and Wellbeing,Health & Safety Equipment,A40080,
http://opendatacommunities.org/id/london-borough-council/sutton,London Borough of Sutton,07/11/2022,10009797,-5.71, EBAY O 03-09214-49701,ESOL BOOK ORDER NOT RECEIVED - REFUND,Health and Wellbeing,Books,A43050,
http://opendatacommunities.org/id/london-borough-council/sutton,London Borough of Sutton,08/11/2022,10009797,424.80, AMZNMKTPLACE,AMAZON LBS 081122 BEAUTY DEPT ITEMS 509.76,Health and Wellbeing,Equipment And Materials Purchase,A40000,
http://opendatacommunities.org/id/london-borough-council/sutton,London Borough of Sutton,14/11/2022,10009797,6.66, AMZNMKTPLACE AMAZON.CO,SPLIT - 30 GM DIAMOND FX ESSENTIAL FACE PAINT - LIGHT BROWN (25%),Peoples Services,LAC - Education,A44280,
http://opendatacommunities.org/id/london-borough-council/sutton,London Borough of Sutton,27/11/2022,10009797,274.99, AMZNBUSINESS 1I0UT7MP4,"SPLIT - ASUS VIVOBOOK 15 X515JA 15.6"" FULL HD LAPTOP (INTEL CORE I5, 8GB RAM, 256GB PCIE SSD, WINDOWS 11) (100%)",Peoples Services,LAC - Education,A44280,
http://opendatacommunities.org/id/london-borough-council/sutton,London Borough of Sutton,26/11/2022,10009797,7.92, AMZNBUSINESS 1I01E6G64,SPLIT - GRADE 9-1 GCSE MATHS EDEXCEL REVISION QUESTION CARDS - FOUNDATION: IDEAL FOR THE 2023 AND 2024 EXAMS (CGP EDEXCEL GCSE MATHS) (100%),Peoples Services,LAC - Education,A44280,
http://opendatacommunities.org/id/london-borough-council/sutton,London Borough of Sutton,25/11/2022,10009797,7.99, EB  RAISING ATTAINMENT,VIRTUAL TRAINING COURSE,Peoples Services,LAC - Education,A44280,
http://opendatacommunities.org/id/london-borough-council/sutton,London Borough of Sutton,25/11/2022,10009797,7.99, EB  RAISING ATTAINMENT,VIRTUAL TRAINING COURSE,Peoples Services,LAC - Education,A44280,
http://opendatacommunities.org/id/london-borough-council/sutton,London Borough of Sutton,24/11/2022,10009797,6.50, AMZNBUSINESS 1I4XV8424,"SPLIT - GCSE MATHS EDEXCEL REVISION GUIDE: FOUNDATION INC ONLINE EDITION, VIDEOS & QUIZZES: IDEAL FOR THE 2023 AND 2024 EXAMS (100%)",Peoples Services,LAC - Education,A44280,
http://opendatacommunities.org/id/london-borough-council/sutton,London Borough of Sutton,24/11/2022,10009797,7.99, EB  RAISING ATTAINMENT,VIRTUAL TRAINING COURSE,Peoples Services,LAC - Education,A44280,
http://opendatacommunities.org/id/london-borough-council/sutton,London Borough of Sutton,24/11/2022,10009797,40.00, PAYPAL  MARKFLUSKEY,GOLF LESSON FOR CLA,Peoples Services,LAC - Education,A44280,
http://opendatacommunities.org/id/london-borough-council/sutton,London Borough of Sutton,23/11/2022,10009797,7.47, AMZNMKTPLACE AMAZON.CO,"SPLIT - ACRYLIC PAINT PENS FOR ROCK PAINTING SET OF 12-0.7MM TIP GLASS PENS WITH EXTRA FINE POINT & WATER-BASED INK - IDEAL PAINT MARKERS FOR CERAMIC, FABRIC, (100%)",Peoples Services,LAC - Education,A44280,
http://opendatacommunities.org/id/london-borough-council/sutton,London Borough of Sutton,23/11/2022,10009797,9.91, AMZNMKTPLACE,"SPLIT - PUKKA PAD,�A4+�METALLIC JOTTA BOOK 3 PACK-22.5 X 29.6CM-WIREBOUND NOTEBOOK WITH 8MM�LINES AND 80GSM PAPER�-FEATURES 4-HOLE PUNCH MARGINS AND PERFORATED EDGES-200 PAGES,�GREEN (100%)",Peoples Services,LAC - Education,A44280,
http://opendatacommunities.org/id/london-borough-council/sutton,London Borough of Sutton,23/11/2022,10009797,6.50, AMZNBUSINESS 1I69Z04Y4,SPLIT - NEW GCSE ENGLISH LANGUAGE AQA EXAM PRACTICE WORKBOOK - INCLUDES ANSWERS AND VIDEOS: PERFECT FOR THE 2023 AND 2024 EXAMS (CGP AQA GCSE ENGLISH LANGUAGE (100%),Peoples Services,LAC - Education,A44280,
http://opendatacommunities.org/id/london-borough-council/sutton,London Borough of Sutton,23/11/2022,10009797,6.50, AMZNBUSINESS 1I7J80ZA4,SPLIT - GCSE ENGLISH WRITING SKILLS STUDY GUIDE - FOR THE GRADE 9-1 COURSES: IDEAL FOR THE 2023 AND 2024 EXAMS (CGP GCSE ENGLISH) (100%),Peoples Services,LAC - Education,A44280,
http://opendatacommunities.org/id/london-borough-council/sutton,London Borough of Sutton,23/11/2022,10009797,4.68, AMZNBUSINESS 1I2V17ON4,SPLIT - GCSE MATHS EDEXCEL EXAM PRACTICE WORKBOOK: FOUNDATION - FOR THE GRADE 9-1 COURSE (WITH ANSWERS): IDEAL FOR THE 2023 AND 2024 EXAMS (27.32%),Peoples Services,LAC - Education,A44280,
http://opendatacommunities.org/id/london-borough-council/sutton,London Borough of Sutton,23/11/2022,10009797,6.50, AMZNBUSINESS 1I2V17ON4,SPLIT - NEW GCSE ENGLISH LANGUAGE AQA REVISION GUIDE - INCLUDES ONLINE EDITION AND VIDEOS: IDEAL FOR THE 2023 AND 2024 EXAMS (CGP AQA GCSE ENGLISH LANGUAGE) (37.95%),Peoples Services,LAC - Education,A44280,
http://opendatacommunities.org/id/london-borough-council/sutton,London Borough of Sutton,23/11/2022,10009797,5.95, AMZNBUSINESS 1I2V17ON4,"SPLIT - SPELLING, PUNCTUATION AND GRAMMAR FOR GRADE 9-1 GCSE WORKBOOK (INCLUDES ANSWERS) (CGP GCSE SP&G) (34.73%)",Peoples Services,LAC - Education,A44280,
http://opendatacommunities.org/id/london-borough-council/sutton,London Borough of Sutton,23/11/2022,10009797,2.91, AMZNMKTPLACE,SPLIT - PAPER MATE INKJOY 100ST BALLPOINT PENS | FINE POINT (0.7MM) | BLACK | 5 COUNT (100%),Peoples Services,LAC - Education,A44280,
http://opendatacommunities.org/id/london-borough-council/sutton,London Borough of Sutton,23/11/2022,10009797,12.09, AMZNBUSINESS 1I1BF0OX4,SPLIT - I CAN MAKE YOU RICH (100%),Peoples Services,LAC - Education,A44280,
http://opendatacommunities.org/id/london-borough-council/sutton,London Borough of Sutton,22/11/2022,10009797,14.16, AMZNMKTPLACE,"SPLIT - WIRELESS EARBUDS, BLUETOOTH 5.3 HEADPHONES IN EAR 2022 WIRELESS HEADPHONES WITH HD MIC, WIRELESS EARPHONES NOISE CANCELLING BLUETOOTH EARPHONES IP7 WA (100%)",Peoples Services,LAC - Education,A44280,
http://opendatacommunities.org/id/london-borough-council/sutton,London Borough of Sutton,22/11/2022,10009797,0.82, AMZNMKTPLACE AMAZON.CO,"SPLIT - HELIX LARGE TABLET ERASER, 102801 (12.41%)",Peoples Services,LAC - Education,A44280,
http://opendatacommunities.org/id/london-borough-council/sutton,London Borough of Sutton,22/11/2022,10009797,5.82, AMZNMKTPLACE AMAZON.CO,"SPLIT - PUKKA A4 PROJECT BOOK, PINK OR BLUE (87.59%)",Peoples Services,LAC - Education,A44280,
http://opendatacommunities.org/id/london-borough-council/sutton,London Borough of Sutton,22/11/2022,10009797,8.32, AMZNMKTPLACE AMAZON.CO,SPLIT - BAOWNYLZ SPIRAL A5 NOTEBOOK - HARDCOVER NOTEPAD LINED - CUTE NOTEBOOK - SPIRAL EXERCISE BOOKS - COVER IS WATERPROOF AND CAN BE WIPED - EASY TO CARRY - (100%),Peoples Services,LAC - Education,A44280,
http://opendatacommunities.org/id/london-borough-council/sutton,London Borough of Sutton,22/11/2022,10009797,14.16, AMZNMKTPLACE,"SPLIT - WIRELESS EARBUDS, BLUETOOTH 5.3 HEADPHONES IN EAR 2022 WIRELESS HEADPHONES WITH HD MIC, WIRELESS EARPHONES NOISE CANCELLING BLUETOOTH EARPHONES IP7 WA (100%)",Peoples Services,LAC - Education,A44280,
http://opendatacommunities.org/id/london-borough-council/sutton,London Borough of Sutton,22/11/2022,10009797,7.99, AMZNBUSINESS 1I7KJ1CY4,SPLIT - THE CATCHER IN THE RYE (100%),Peoples Services,LAC - Education,A44280,
http://opendatacommunities.org/id/london-borough-council/sutton,London Borough of Sutton,18/11/2022,10009797,144.72, AMZNMKTPLACE,"SPLIT - ACER CHROMEBOOK 311 CB311-11H - (MEDIATEK MT8183, 4GB, 64GB EMMC, 11.6 INCH HD DISPLAY, GOOGLE CHROME OS, SILVER) (98.12%)",Peoples Services,LAC - Education,A44280,
http://opendatacommunities.org/id/london-borough-council/sutton,London Borough of Sutton,18/11/2022,10009797,2.77, AMZNMKTPLACE,BALANCING ENTRY AMOUNT (1.88%),Peoples Services,LAC - Education,A44280,
http://opendatacommunities.org/id/london-borough-council/sutton,London Borough of Sutton,17/11/2022,10009797,29.37, AMZNBUSINESS 1B8PJ1EI4,SPLIT - BTEC NATIONAL HEALTH AND SOCIAL CARE STUDENT BOOK 1: FOR THE 2016 SPECIFICATIONS (BTEC NATIONALS HEALTH AND SOCIAL CARE 2016) (100%),Peoples Services,LAC - Education,A44280,
http://opendatacommunities.org/id/london-borough-council/sutton,London Borough of Sutton,17/11/2022,10009797,23.50, AMZNMKTPLACE,SPLIT - ESSENTIAL GRAMMAR IN USE WITH ANSWERS: A SELF-STUDY REFERENCE AND PRACTICE BOOK FOR ELEMENTARY LEARNERS OF ENGLISH (100%),Peoples Services,LAC - Education,A44280,
http://opendatacommunities.org/id/london-borough-council/sutton,London Borough of Sutton,17/11/2022,10009797,22.25, AMZNBUSINESS QT6B84P35,SPLIT - ENGLISH-ALBANIAN & ALBANIAN-ENGLISH WORD-TO-WORD DICTIONARY (100%),Peoples Services,LAC - Education,A44280,
http://opendatacommunities.org/id/london-borough-council/sutton,London Borough of Sutton,14/11/2022,10009797,200.00, AMAZON PRIME Z347W05T5,LAPTOP,Peoples Services,LAC - Education,A44280,
http://opendatacommunities.org/id/london-borough-council/sutton,London Borough of Sutton,14/11/2022,10009797,6.66, AMZNMKTPLACE AMAZON.CO,SPLIT - 30 GM DIAMOND FX ESSENTIAL FACE PAINT - LIGHT BLUE (25%),Peoples Services,LAC - Education,A44280,
http://opendatacommunities.org/id/london-borough-council/sutton,London Borough of Sutton,14/11/2022,10009797,6.66, AMZNMKTPLACE AMAZON.CO,SPLIT - DIAMOND FX WHITE 30 GM FACE PAINT (25%),Peoples Services,LAC - Education,A44280,
http://opendatacommunities.org/id/london-borough-council/sutton,London Borough of Sutton,14/11/2022,10009797,6.66, AMZNMKTPLACE AMAZON.CO,SPLIT - 30 GM DIAMOND FX ESSENTIAL FACE PAINT - LIGHT GREEN (25%),Peoples Services,LAC - Education,A44280,
http://opendatacommunities.org/id/london-borough-council/sutton,London Borough of Sutton,11/11/2022,10009797,11.65, AMZNBUSINESS GH5SQ7GJ5,SCIENTIFIC CALCULATOR,Peoples Services,LAC - Education,A44280,
http://opendatacommunities.org/id/london-borough-council/sutton,London Borough of Sutton,07/11/2022,10009797,10.41, AMZNMKTPLACE,SPLIT - MOZART WATERCOLOUR PAINT ESSENTIAL SET - 24 VIBRANT COLOURS - LIGHTWEIGHT AND PORTABLE - PERFECT FOR BUDDING HOBBYISTS AND PROFESSIONAL ARTISTS - PAIN (55.59%),Peoples Services,LAC - Education,A44280,
http://opendatacommunities.org/id/london-borough-council/sutton,London Borough of Sutton,07/11/2022,10009797,8.32, AMZNMKTPLACE,SPLIT - DODUOS 3PCS A4 SKETCH NOTEBOOKS KRAFT COVER 80 PAGES STARTER SKETCH NOTEBOOKS BLANK SKETCH BOOK ARTIST SKETCHES BOOKS WITH WHITE CARTRIDGE PAPER SKETC (44.41%),Peoples Services,LAC - Education,A44280,
http://opendatacommunities.org/id/london-borough-council/sutton,London Borough of Sutton,07/11/2022,10009797,6.98, AMZNMKTPLACE AMAZON.CO,SPLIT - UHU 52190�- 2�GLUE STICKS 21G (100%),Peoples Services,LAC - Education,A44280,
http://opendatacommunities.org/id/london-borough-council/sutton,London Borough of Sutton,07/11/2022,10009797,12.04, AMZNMKTPLACE,SPLIT - YOU WILL BE ABLE TO DRAW BY THE END OF THIS BOOK (100%),Peoples Services,LAC - Education,A44280,
http://opendatacommunities.org/id/london-borough-council/sutton,London Borough of Sutton,07/11/2022,10009797,7.35, AMZNBUSINESS H86JX42U5,SPLIT - TURKISH ESSENTIAL DICTIONARY: BESTSELLING BILINGUAL DICTIONARIES (COLLINS ESSENTIAL DICTIONARIES) (100%),Peoples Services,LAC - Education,A44280,
http://opendatacommunities.org/id/london-borough-council/sutton,London Borough of Sutton,06/11/2022,10009797,16.99, AMZNMKTPLACE AMAZON.CO,"SPLIT - COOLZON SKETCHING PENCIL SET DRAWING COLOURING PENCILS, 52PCS ARTIST SET ART SUPPLIES KIT WITH SKETCH PENCILS CHARCOAL PENCILS COLOURED PENCIL GRAPHIT (100%)",Peoples Services,LAC - Education,A44280,
http://opendatacommunities.org/id/london-borough-council/sutton,London Borough of Sutton,03/11/2022,10009797,9.16, AMZNMKTPLACE,SPLIT - LARGE PENCIL CASE BIG CAPACITY PENCIL POUCH BAG PEN HOLDER 3 COMPARTMENTS SCHOOL SUPPLIES STATIONERY STORAGE ORGANIZER FOR MIDDLE HIGH SCHOOL OFFICE C (100%),Peoples Services,LAC - Education,A44280,
http://opendatacommunities.org/id/london-borough-council/sutton,London Borough of Sutton,03/11/2022,10009797,2.32, AMZNMKTPLACE,SPLIT - HELIX OXFORD SCISSORS 13CM (100%),Peoples Services,LAC - Education,A44280,
http://opendatacommunities.org/id/london-borough-council/sutton,London Borough of Sutton,03/11/2022,10009797,2.21, AMZNMKTPLACE,"SPLIT - BIC CRISTAL ORIGINAL BALLPOINT PENS, EVERY-DAY BIRO PENS, FINE POINT (1.0 MM), IDEAL FOR SCHOOL, BLACK INK, PACK OF 10 (47.32%)",Peoples Services,LAC - Education,A44280,
http://opendatacommunities.org/id/london-borough-council/sutton,London Borough of Sutton,03/11/2022,10009797,2.46, AMZNMKTPLACE,"SPLIT - PRITT GLUE STICK, SAFE & CHILD-FRIENDLY CRAFT GLUE FOR ARTS & CRAFTS ACTIVITIES, STRONG-HOLD ADHESIVE FOR SCHOOL & OFFICE SUPPLIES, 22 G (PACK OF 3) (52.68%)",Peoples Services,LAC - Education,A44280,
http://opendatacommunities.org/id/london-borough-council/sutton,London Borough of Sutton,03/11/2022,10009797,3.33, AMZNMKTPLACE,"SPLIT - HELIX OXFORD BLAZER BUDDY STATIONERY SET WITH COMPACT CLEAR PENCIL CASE (DESIGNED TO FIT SCHOOL BLAZER POCKET) OXFORD BLUE, 981805 (48.08%)",Peoples Services,LAC - Education,A44280,
http://opendatacommunities.org/id/london-borough-council/sutton,London Borough of Sutton,03/11/2022,10009797,3.60, AMZNMKTPLACE,SPLIT - HELIX OXFORD FILLED PENCIL CASE EXAM SET (51.92%),Peoples Services,LAC - Education,A44280,
http://opendatacommunities.org/id/london-borough-council/sutton,London Borough of Sutton,03/11/2022,10009797,3.96, AMZNMKTPLACE,SPLIT - STAEDTLER 185 C24 NORIS COLOUR PENCILS - ASSORTED COLOURS (PACK OF 24) (100%),Peoples Services,LAC - Education,A44280,
http://opendatacommunities.org/id/london-borough-council/sutton,London Borough of Sutton,03/11/2022,10009797,8.32, AMZNMKTPLACE AMAZON.CO,"SPLIT - NEW CASIO FX-83GTX SCIENTIFIC CALCULATOR, BLACK (100%)",Peoples Services,LAC - Education,A44280,
http://opendatacommunities.org/id/london-borough-council/sutton,London Borough of Sutton,02/11/2022,10009797,33.33, PAYPAL  MARKFLUSKEY,LAPTOP,Peoples Services,LAC - Education,A44280,
http://opendatacommunities.org/id/london-borough-council/sutton,London Borough of Sutton,01/11/2022,10009797,291.66, AMZNBUSINESS 2Z94Z0M75,"SPLIT - ASUS VIVOBOOK 15 X1500EA 15.6"" FULL HD LAPTOP (INTEL I3-1115G4, 8GB RAM, 256GB SSD, WINDOWS 11) (100%)",Peoples Services,LAC - Education,A44280,
http://opendatacommunities.org/id/london-borough-council/sutton,London Borough of Sutton,30/10/2022,10009797,28.05, AMZNBUSINESS SV7JT57S5,SPLIT - BTEC FIRST IN INFORMATION AND CREATIVE TECHNOLOGY STUDENT BOOK (BTEC FIRST IT) (100%),Peoples Services,LAC - Education,A44280,
http://opendatacommunities.org/id/london-borough-council/sutton,London Borough of Sutton,27/10/2022,10009797,25.60, AMZNMKTPLACE AMAZON.CO,SPLIT - ALEX RIDER 11 BOOKS COLLECTION SET BY ANTHONY HOROWITZ WORLD BOOK DAY UNDERCOVER (100%),Peoples Services,LAC - Education,A44280,
http://opendatacommunities.org/id/london-borough-council/sutton,London Borough of Sutton,27/10/2022,10009797,62.50, CHILDCARE STUDIES,EDUCATIONAL GOODS,Peoples Services,LAC - Education,A44280,
